[Event "Titled Tuesday Blitz June 6 Early 2023"]
[White "Torres Dominguez, David"]
[Black "Redzisz, Michal"]
[WhiteFideId "2220857"]
[BlackFideId "21816107"]
[WhiteElo "1999"]
[BlackElo "2175"]
[Result "0-1"]
[Round "2"]
[TimeControl "180+2"]
[Date "2023.06.06"]
[WhiteClock "0:00:17"]
[BlackClock "0:00:12"]
[Board "206"]

1. e4 {[%clk 0:03:00]}  e6 {[%clk 0:03:00]} 2. d4 {[%clk 0:02:59]}  d5 {[%clk 0:03:01]} 3. exd5 {[%clk 0:03:00]}  exd5 {[%clk 0:03:00]} 4. Bd3 {[%clk 0:03:01]}  Nf6 {[%clk 0:02:59]} 5. Nf3 {[%clk 0:03:01]}  Bd6 {[%clk 0:02:59]} 6. O-O {[%clk 0:03:02]}  O-O {[%clk 0:02:58]} 7. h3 {[%clk 0:03:02]}  h6 {[%clk 0:02:58]} 8. Re1 {[%clk 0:03:00]}  Nbd7 {[%clk 0:02:53]} 9. Nc3 {[%clk 0:02:58]}  c5 {[%clk 0:02:46]} 10. Nb5 {[%clk 0:02:53]}  Bb8 {[%clk 0:02:46]} 11. dxc5 {[%clk 0:02:52]}  Nxc5 {[%clk 0:02:47]} 12. Nbd4 {[%clk 0:02:52]}  a6 {[%clk 0:02:18]} 13. c3 {[%clk 0:02:52]}  b5 {[%clk 0:02:17]} 14. a3 {[%clk 0:02:52]}  Bb7 {[%clk 0:02:15]} 15. Ne5 {[%clk 0:02:42]}  Nfe4 {[%clk 0:01:56]} 16. Nec6 {[%clk 0:02:15]}  Bxc6 {[%clk 0:01:50]} 17. Nxc6 {[%clk 0:02:16]}  Qf6 {[%clk 0:01:45]} 18. Bxe4 {[%clk 0:02:04]}  Nxe4 {[%clk 0:01:41]} 19. Nxb8 {[%clk 0:01:45]}  Qxf2+ {[%clk 0:01:37]} 20. Kh1 {[%clk 0:01:43]}  Raxb8 {[%clk 0:01:29]} 21. Be3 {[%clk 0:01:42]}  Qf5 {[%clk 0:01:16]} 22. Qd4 {[%clk 0:01:33]}  Rfe8 {[%clk 0:01:09]} 23. Rad1 {[%clk 0:01:32]}  Rbd8 {[%clk 0:01:03]} 24. Kh2 {[%clk 0:01:25]}  h5 {[%clk 0:01:00]} 25. Rf1 {[%clk 0:01:22]}  Qg6 {[%clk 0:00:58]} 26. Bf4 {[%clk 0:01:18]}  h4 {[%clk 0:00:52]} 27. Rde1 {[%clk 0:01:03]}  Ng3 {[%clk 0:00:48]} 28. Rg1 {[%clk 0:00:59]}  Ne2 {[%clk 0:00:45]} 29. Rxe2 {[%clk 0:00:49]}  Rxe2 {[%clk 0:00:46]} 30. Bc7 {[%clk 0:00:41]}  Rd7 {[%clk 0:00:21]} 31. Be5 {[%clk 0:00:39]}  Re7 {[%clk 0:00:17]} 32. Bf4 {[%clk 0:00:29]}  Qe4 {[%clk 0:00:15]} 33. Qxe4 {[%clk 0:00:28]}  dxe4 {[%clk 0:00:14]} 34. b4 {[%clk 0:00:20]}  Rc2 {[%clk 0:00:12]} 35. Bd6 {[%clk 0:00:19]}  Re6 {[%clk 0:00:11]} 36. Bc5 {[%clk 0:00:19]}  e3 {[%clk 0:00:11]} 37. Re1 {[%clk 0:00:19]}  e2 {[%clk 0:00:11]} 38. Kg1 {[%clk 0:00:17]}  Rxc3 {[%clk 0:00:11]} 39. Kf2 {[%clk 0:00:18]}  Rxa3 {[%clk 0:00:11]} 40. Rxe2 {[%clk 0:00:18]}  Rxe2+ {[%clk 0:00:11]} 41. Kxe2 {[%clk 0:00:19]}  Ra2+ {[%clk 0:00:12]} 42. Kf3 {[%clk 0:00:19]}  Rc2 {[%clk 0:00:13]} 43. Bf2 {[%clk 0:00:18]}  Rc4 {[%clk 0:00:13]} 44. Bxh4 {[%clk 0:00:17]}  Rxh4 {[%clk 0:00:12]} 0-1


[Site "https://www.chess.com"]

[Event "Titled Tuesday Blitz June 6 Early 2023"]
[White "Alexikov, Alexander"]
[Black "Alexanian, Nelli"]
[WhiteFideId "14103958"]
[BlackFideId "4170539"]
[WhiteElo "2186"]
[BlackElo "2049"]
[Result "1-0"]
[Round "2"]
[TimeControl "180+2"]
[Date "2023.06.06"]
[WhiteClock "0:01:39"]
[BlackClock "0:01:06"]
[Board "208"]

1. e4 {[%clk 0:03:00]}  e6 {[%clk 0:02:59]} 2. d4 {[%clk 0:02:58]}  d5 {[%clk 0:02:58]} 3. Nc3 {[%clk 0:02:55]}  Bb4 {[%clk 0:02:57]} 4. Ne2 {[%clk 0:02:53]}  dxe4 {[%clk 0:02:52]} 5. a3 {[%clk 0:02:53]}  Bxc3+ {[%clk 0:02:49]} 6. Nxc3 {[%clk 0:02:53]}  f5 {[%clk 0:02:42]} 7. f3 {[%clk 0:02:51]}  e3 {[%clk 0:02:35]} 8. Bxe3 {[%clk 0:02:49]}  Nf6 {[%clk 0:02:27]} 9. Qd2 {[%clk 0:02:47]}  Nbd7 {[%clk 0:02:16]} 10. d5 {[%clk 0:02:32]}  e5 {[%clk 0:02:12]} 11. O-O-O {[%clk 0:02:21]}  Qe7 {[%clk 0:01:57]} 12. Nb5 {[%clk 0:02:13]}  Nxd5 {[%clk 0:01:26]} 13. Qxd5 {[%clk 0:02:09]}  c6 {[%clk 0:01:25]} 14. Nc7+ {[%clk 0:01:52]}  Kd8 {[%clk 0:01:23]} 15. Ne6+ {[%clk 0:01:50]}  Ke8 {[%clk 0:01:23]} 16. Qb3 {[%clk 0:01:43]}  Nf6 {[%clk 0:01:06]} 17. Rd8+ {[%clk 0:01:39]} 1-0


[Site "https://www.chess.com"]

[Event "Titled Tuesday Blitz June 6 Early 2023"]
[White "White, John S."]
[Black "ArchibaldCerveza29"]
[WhiteFideId "2502348"]
[WhiteElo "1982"]
[BlackElo "2418"]
[Result "0-1"]
[Round "2"]
[TimeControl "180+2"]
[Date "2023.06.06"]
[WhiteClock "0:00:08"]
[BlackClock "0:00:09"]
[Board "209"]

1. e4 {[%clk 0:03:00]}  e5 {[%clk 0:02:47]} 2. Nf3 {[%clk 0:03:01]}  Nc6 {[%clk 0:02:44]} 3. d4 {[%clk 0:03:01]}  exd4 {[%clk 0:02:44]} 4. Nxd4 {[%clk 0:03:02]}  Bc5 {[%clk 0:02:39]} 5. Be3 {[%clk 0:03:02]}  Qf6 {[%clk 0:02:38]} 6. c3 {[%clk 0:03:02]}  Nge7 {[%clk 0:02:38]} 7. Bc4 {[%clk 0:03:02]}  O-O {[%clk 0:02:38]} 8. O-O {[%clk 0:03:01]}  b6 {[%clk 0:02:38]} 9. Nb5 {[%clk 0:02:58]}  Bxe3 {[%clk 0:02:29]} 10. fxe3 {[%clk 0:02:57]}  Qe5 {[%clk 0:02:30]} 11. Nd2 {[%clk 0:02:49]}  a6 {[%clk 0:02:20]} 12. Nd4 {[%clk 0:02:43]}  Bb7 {[%clk 0:02:20]} 13. Qc2 {[%clk 0:02:38]}  Na5 {[%clk 0:02:12]} 14. Bd3 {[%clk 0:02:30]}  d5 {[%clk 0:02:05]} 15. N2f3 {[%clk 0:02:22]}  Qh5 {[%clk 0:02:01]} 16. exd5 {[%clk 0:02:11]}  Nxd5 {[%clk 0:01:58]} 17. Rae1 {[%clk 0:02:03]}  Rae8 {[%clk 0:01:55]} 18. Qd2 {[%clk 0:01:42]}  c5 {[%clk 0:01:38]} 19. Nb3 {[%clk 0:01:35]}  Nc6 {[%clk 0:01:33]} 20. e4 {[%clk 0:01:31]}  Nf6 {[%clk 0:01:31]} 21. Qe2 {[%clk 0:01:10]}  b5 {[%clk 0:01:20]} 22. Bb1 {[%clk 0:01:05]}  Ne5 {[%clk 0:00:45]} 23. Nxe5 {[%clk 0:00:53]}  Qxe2 {[%clk 0:00:46]} 24. Rxe2 {[%clk 0:00:49]}  Rxe5 {[%clk 0:00:47]} 25. Nd2 {[%clk 0:00:43]}  Rfe8 {[%clk 0:00:46]} 26. Rfe1 {[%clk 0:00:42]}  Kf8 {[%clk 0:00:43]} 27. h3 {[%clk 0:00:39]}  Ke7 {[%clk 0:00:42]} 28. Nf3 {[%clk 0:00:36]}  Re6 {[%clk 0:00:39]} 29. Ng5 {[%clk 0:00:33]}  Rb6 {[%clk 0:00:37]} 30. e5 {[%clk 0:00:29]}  Nd5 {[%clk 0:00:35]} 31. Nxh7 {[%clk 0:00:19]}  b4 {[%clk 0:00:20]} 32. cxb4 {[%clk 0:00:16]}  Rxb4 {[%clk 0:00:19]} 33. b3 {[%clk 0:00:14]}  Nf4 {[%clk 0:00:19]} 34. Rf2 {[%clk 0:00:13]}  a5 {[%clk 0:00:13]} 35. Ng5 {[%clk 0:00:13]}  a4 {[%clk 0:00:14]} 36. bxa4 {[%clk 0:00:12]}  Rxa4 {[%clk 0:00:13]} 37. Bc2 {[%clk 0:00:11]}  Rxa2 {[%clk 0:00:13]} 38. Rxf4 {[%clk 0:00:12]}  Rxc2 {[%clk 0:00:12]} 39. Rf2 {[%clk 0:00:12]}  Rxf2 {[%clk 0:00:11]} 40. Kxf2 {[%clk 0:00:13]}  Ra8 {[%clk 0:00:12]} 41. Re2 {[%clk 0:00:13]}  c4 {[%clk 0:00:11]} 42. Ne4 {[%clk 0:00:11]}  Ra3 {[%clk 0:00:09]} 43. Rc2 {[%clk 0:00:10]}  Bxe4 {[%clk 0:00:09]} 44. Rxc4 {[%clk 0:00:11]}  Bd5 {[%clk 0:00:08]} 45. Rc7+ {[%clk 0:00:10]}  Ke6 {[%clk 0:00:09]} 46. Rc8 {[%clk 0:00:10]}  Ra2+ {[%clk 0:00:09]} 47. Kg3 {[%clk 0:00:10]}  Rxg2+ {[%clk 0:00:09]} 48. Kf4 {[%clk 0:00:11]}  Rh2 {[%clk 0:00:08]} 49. Kg3 {[%clk 0:00:11]}  Rg2+ {[%clk 0:00:08]} 50. Kh4 {[%clk 0:00:11]}  Rg1 {[%clk 0:00:09]} 51. Rc3 {[%clk 0:00:09]}  Kf5 {[%clk 0:00:09]} 52. Re3 {[%clk 0:00:09]}  Kf4 {[%clk 0:00:08]} 53. Re2 {[%clk 0:00:08]}  Bf3 {[%clk 0:00:08]} 54. Rf2 {[%clk 0:00:08]}  g5# {[%clk 0:00:09]} 0-1


[Site "https://www.chess.com"]

[Event "Titled Tuesday Blitz June 6 Early 2023"]
[White "Porat, Tori"]
[Black "Mogirzan, Matei-Valeriu"]
[WhiteFideId "30982626"]
[BlackFideId "1257455"]
[WhiteElo "1752"]
[BlackElo "1733"]
[Result "0-1"]
[Round "2"]
[TimeControl "180+2"]
[Date "2023.06.06"]
[WhiteClock "0:00:08"]
[BlackClock "0:00:04"]
[Board "210"]

1. d4 {[%clk 0:03:00]}  Nf6 {[%clk 0:03:00]} 2. c4 {[%clk 0:03:00]}  e6 {[%clk 0:02:59]} 3. Nf3 {[%clk 0:03:00]}  c5 {[%clk 0:02:57]} 4. e3 {[%clk 0:02:56]}  d5 {[%clk 0:02:54]} 5. Nc3 {[%clk 0:02:53]}  Nc6 {[%clk 0:02:53]} 6. cxd5 {[%clk 0:02:47]}  exd5 {[%clk 0:02:52]} 7. dxc5 {[%clk 0:02:47]}  Bxc5 {[%clk 0:02:53]} 8. Bb5 {[%clk 0:02:46]}  a6 {[%clk 0:02:51]} 9. Ba4 {[%clk 0:02:45]}  Be6 {[%clk 0:02:47]} 10. O-O {[%clk 0:02:30]}  Qc7 {[%clk 0:02:42]} 11. a3 {[%clk 0:02:19]}  b5 {[%clk 0:02:37]} 12. Bb3 {[%clk 0:02:18]}  Rd8 {[%clk 0:02:34]} 13. Ng5 {[%clk 0:02:12]}  Bg4 {[%clk 0:02:19]} 14. f3 {[%clk 0:02:05]}  h6 {[%clk 0:02:17]} 15. Nxf7 {[%clk 0:01:55]}  Qxf7 {[%clk 0:01:56]} 16. fxg4 {[%clk 0:01:54]}  Qe6 {[%clk 0:01:55]} 17. h3 {[%clk 0:01:34]}  O-O {[%clk 0:01:21]} 18. Qe2 {[%clk 0:01:18]}  Qe5 {[%clk 0:01:02]} 19. Rf3 {[%clk 0:01:01]}  Kh8 {[%clk 0:00:58]} 20. Bd2 {[%clk 0:00:49]}  Bd6 {[%clk 0:00:38]} 21. g3 {[%clk 0:00:47]}  d4 {[%clk 0:00:32]} 22. Nd1 {[%clk 0:00:32]}  Ne4 {[%clk 0:00:25]} 23. Rf4 {[%clk 0:00:17]}  Nxg3 {[%clk 0:00:14]} 24. Qg2 {[%clk 0:00:16]}  g5 {[%clk 0:00:07]} 25. Rxf8+ {[%clk 0:00:13]}  Rxf8 {[%clk 0:00:07]} 26. Nf2 {[%clk 0:00:11]}  dxe3 {[%clk 0:00:05]} 27. Rf1 {[%clk 0:00:08]}  Nxf1 {[%clk 0:00:04]} 28. Qxf1 {[%clk 0:00:08]}  Qh2# {[%clk 0:00:04]} 0-1


[Site "https://www.chess.com"]

[Event "Titled Tuesday Blitz June 6 Early 2023"]
[White "Naroditsky, Daniel"]
[Black "Maximov, Dmitry"]
[WhiteFideId "2026961"]
[BlackFideId "14105659"]
[WhiteElo "2632"]
[BlackElo "2494"]
[Result "1-0"]
[Round "3"]
[TimeControl "180+2"]
[Date "2023.06.06"]
[WhiteClock "0:00:29"]
[BlackClock "0:00:06"]
[Board "2"]

1. e4 {[%clk 0:03:00]}  c5 {[%clk 0:02:59]} 2. Nf3 {[%clk 0:03:00]}  d6 {[%clk 0:03:00]} 3. Bb5+ {[%clk 0:03:00]}  Nd7 {[%clk 0:02:59]} 4. O-O {[%clk 0:03:00]}  a6 {[%clk 0:03:00]} 5. Bd3 {[%clk 0:03:01]}  g6 {[%clk 0:02:59]} 6. c3 {[%clk 0:03:01]}  Bg7 {[%clk 0:03:00]} 7. Bc2 {[%clk 0:03:02]}  Ngf6 {[%clk 0:02:59]} 8. d4 {[%clk 0:03:02]}  e5 {[%clk 0:02:56]} 9. dxe5 {[%clk 0:02:55]}  dxe5 {[%clk 0:02:55]} 10. a4 {[%clk 0:02:53]}  O-O {[%clk 0:02:50]} 11. Nbd2 {[%clk 0:02:53]}  b6 {[%clk 0:02:43]} 12. Nc4 {[%clk 0:02:52]}  Bb7 {[%clk 0:02:43]} 13. Qe2 {[%clk 0:02:48]}  Qc7 {[%clk 0:02:36]} 14. Rd1 {[%clk 0:02:47]}  Rad8 {[%clk 0:02:32]} 15. Bg5 {[%clk 0:02:38]}  h6 {[%clk 0:02:31]} 16. Bh4 {[%clk 0:02:38]}  g5 {[%clk 0:02:05]} 17. Bg3 {[%clk 0:02:37]}  Nh5 {[%clk 0:02:06]} 18. Nd6 {[%clk 0:02:31]}  Nf4 {[%clk 0:01:56]} 19. Qe3 {[%clk 0:02:32]}  Bc6 {[%clk 0:01:42]} 20. Nf5 {[%clk 0:02:27]}  Nf6 {[%clk 0:01:39]} 21. h4 {[%clk 0:02:12]}  Ng4 {[%clk 0:01:35]} 22. Qe1 {[%clk 0:02:12]}  Ne6 {[%clk 0:01:06]} 23. hxg5 {[%clk 0:02:08]}  hxg5 {[%clk 0:01:03]} 24. Bb3 {[%clk 0:02:05]}  Rfe8 {[%clk 0:00:54]} 25. Bd5 {[%clk 0:01:58]}  Bxd5 {[%clk 0:00:45]} 26. exd5 {[%clk 0:01:59]}  Nf4 {[%clk 0:00:45]} 27. d6 {[%clk 0:01:38]}  Qb7 {[%clk 0:00:46]} 28. Ne7+ {[%clk 0:01:37]}  Kf8 {[%clk 0:00:44]} 29. Bxf4 {[%clk 0:01:35]}  gxf4 {[%clk 0:00:37]} 30. Ng5 {[%clk 0:01:35]}  Rxd6 {[%clk 0:00:31]} 31. Rxd6 {[%clk 0:01:01]}  Qxe7 {[%clk 0:00:31]} 32. Ne4 {[%clk 0:01:01]}  Qh4 {[%clk 0:00:30]} 33. Kf1 {[%clk 0:00:59]}  Qh1+ {[%clk 0:00:27]} 34. Ke2 {[%clk 0:00:59]}  Qxg2 {[%clk 0:00:28]} 35. Qh1 {[%clk 0:00:57]}  f3+ {[%clk 0:00:25]} 36. Kd2 {[%clk 0:00:52]}  f5 {[%clk 0:00:25]} 37. Qxg2 {[%clk 0:00:42]}  fxg2 {[%clk 0:00:25]} 38. Ng3 {[%clk 0:00:43]}  f4 {[%clk 0:00:22]} 39. Ne4 {[%clk 0:00:41]}  Ke7 {[%clk 0:00:18]} 40. Rg6 {[%clk 0:00:40]}  Rd8+ {[%clk 0:00:18]} 41. Ke2 {[%clk 0:00:37]}  f3+ {[%clk 0:00:07]} 42. Kxf3 {[%clk 0:00:36]}  Rf8+ {[%clk 0:00:07]} 43. Kxg4 {[%clk 0:00:34]}  Rf4+ {[%clk 0:00:07]} 44. Kg3 {[%clk 0:00:34]}  Rxe4 {[%clk 0:00:07]} 45. Rxg7+ {[%clk 0:00:34]}  Kf6 {[%clk 0:00:07]} 46. Rg4 {[%clk 0:00:34]}  Re2 {[%clk 0:00:07]} 47. b4 {[%clk 0:00:31]}  Rc2 {[%clk 0:00:07]} 48. Kxg2 {[%clk 0:00:31]}  Rxc3 {[%clk 0:00:07]} 49. bxc5 {[%clk 0:00:30]}  bxc5 {[%clk 0:00:07]} 50. Rb1 {[%clk 0:00:31]}  Kf5 {[%clk 0:00:07]} 51. Rg8 {[%clk 0:00:31]}  Ra3 {[%clk 0:00:06]} 52. Rf8+ {[%clk 0:00:29]}  Ke4 {[%clk 0:00:06]} 53. Re1+ {[%clk 0:00:29]}  Kd4 {[%clk 0:00:06]} 54. Rd8+ {[%clk 0:00:29]}  Kc4 {[%clk 0:00:06]} 55. Re4+ {[%clk 0:00:29]} 1-0


[Site "https://www.chess.com"]

[Event "Titled Tuesday Blitz June 6 Early 2023"]
[White "Grischuk, Alexander"]
[Black "Djordjevic, Vuk"]
[WhiteFideId "4126025"]
[BlackFideId "902098"]
[WhiteElo "2721"]
[BlackElo "2463"]
[Result "1-0"]
[Round "3"]
[TimeControl "180+2"]
[Date "2023.06.06"]
[WhiteClock "0:00:14"]
[BlackClock "0:00:03"]
[Board "6"]

1. Nf3 {[%clk 0:03:00]}  Nf6 {[%clk 0:02:59]} 2. g3 {[%clk 0:03:01]}  d5 {[%clk 0:02:58]} 3. Bg2 {[%clk 0:03:00]}  e6 {[%clk 0:02:59]} 4. O-O {[%clk 0:02:59]}  Be7 {[%clk 0:02:59]} 5. c4 {[%clk 0:02:59]}  O-O {[%clk 0:02:58]} 6. d3 {[%clk 0:02:59]}  c6 {[%clk 0:02:57]} 7. b3 {[%clk 0:02:53]}  a5 {[%clk 0:02:56]} 8. Nc3 {[%clk 0:02:48]}  b6 {[%clk 0:02:49]} 9. Bb2 {[%clk 0:02:46]}  Nbd7 {[%clk 0:02:38]} 10. Qc2 {[%clk 0:02:41]}  Ba6 {[%clk 0:02:35]} 11. Rfd1 {[%clk 0:02:31]}  b5 {[%clk 0:02:32]} 12. Nb1 {[%clk 0:01:47]}  Qb6 {[%clk 0:02:07]} 13. Nbd2 {[%clk 0:01:47]}  bxc4 {[%clk 0:01:13]} 14. bxc4 {[%clk 0:01:44]}  Bc5 {[%clk 0:01:11]} 15. Rf1 {[%clk 0:01:26]}  Ng4 {[%clk 0:00:51]} 16. d4 {[%clk 0:01:24]}  Be7 {[%clk 0:00:37]} 17. Rab1 {[%clk 0:01:23]}  Rfb8 {[%clk 0:00:35]} 18. e4 {[%clk 0:01:11]}  Ngf6 {[%clk 0:00:33]} 19. e5 {[%clk 0:01:04]}  Ne8 {[%clk 0:00:33]} 20. Rfc1 {[%clk 0:00:59]}  Qd8 {[%clk 0:00:27]} 21. c5 {[%clk 0:00:52]}  a4 {[%clk 0:00:21]} 22. Nf1 {[%clk 0:00:46]}  Bc4 {[%clk 0:00:21]} 23. Bc3 {[%clk 0:00:43]}  Nc7 {[%clk 0:00:18]} 24. Ne3 {[%clk 0:00:43]}  a3 {[%clk 0:00:10]} 25. Nxc4 {[%clk 0:00:38]}  dxc4 {[%clk 0:00:10]} 26. Bf1 {[%clk 0:00:39]}  Rxb1 {[%clk 0:00:10]} 27. Rxb1 {[%clk 0:00:39]}  Rb8 {[%clk 0:00:10]} 28. Bxc4 {[%clk 0:00:39]}  Qc8 {[%clk 0:00:07]} 29. Rb3 {[%clk 0:00:31]}  Rxb3 {[%clk 0:00:04]} 30. Qxb3 {[%clk 0:00:32]}  Qa8 {[%clk 0:00:05]} 31. Bb4 {[%clk 0:00:29]}  Qa7 {[%clk 0:00:01]} 32. Qxa3 {[%clk 0:00:29]}  Qb7 {[%clk 0:00:02]} 33. Qb3 {[%clk 0:00:29]}  h6 {[%clk 0:00:02]} 34. Bd2 {[%clk 0:00:29]}  Qa7 {[%clk 0:00:02]} 35. a4 {[%clk 0:00:29]}  Nb8 {[%clk 0:00:02]} 36. Qb6 {[%clk 0:00:27]}  Qxb6 {[%clk 0:00:01]} 37. cxb6 {[%clk 0:00:27]}  Nd5 {[%clk 0:00:01]} 38. a5 {[%clk 0:00:27]}  Bd8 {[%clk 0:00:02]} 39. Ne1 {[%clk 0:00:25]}  Be7 {[%clk 0:00:01]} 40. Nd3 {[%clk 0:00:24]}  Bd8 {[%clk 0:00:01]} 41. Nc5 {[%clk 0:00:23]}  Kf8 {[%clk 0:00:01]} 42. Kg2 {[%clk 0:00:15]}  Ke8 {[%clk 0:00:02]} 43. f4 {[%clk 0:00:15]}  Ne7 {[%clk 0:00:03]} 44. Kf3 {[%clk 0:00:15]}  Nf5 {[%clk 0:00:03]} 45. Ke4 {[%clk 0:00:15]}  Ne7 {[%clk 0:00:03]} 46. g4 {[%clk 0:00:14]}  g6 {[%clk 0:00:04]} 47. h3 {[%clk 0:00:15]}  Nc8 {[%clk 0:00:04]} 48. f5 {[%clk 0:00:14]}  exf5+ {[%clk 0:00:04]} 49. gxf5 {[%clk 0:00:14]}  gxf5+ {[%clk 0:00:05]} 50. Kxf5 {[%clk 0:00:15]}  Ne7+ {[%clk 0:00:05]} 51. Ke4 {[%clk 0:00:16]}  h5 {[%clk 0:00:05]} 52. Bg5 {[%clk 0:00:14]}  Nc8 {[%clk 0:00:02]} 53. Bxd8 {[%clk 0:00:14]}  Kxd8 {[%clk 0:00:02]} 54. Bxf7 {[%clk 0:00:14]}  Ne7 {[%clk 0:00:03]} 55. Bxh5 {[%clk 0:00:14]} 1-0


[Site "https://www.chess.com"]

[Event "Titled Tuesday Blitz June 6 Early 2023"]
[White "Pakleza, Zbigniew"]
[Black "Paravyan, David"]
[WhiteFideId "1119290"]
[BlackFideId "4194985"]
[WhiteElo "2410"]
[BlackElo "2563"]
[Result "0-1"]
[Round "3"]
[TimeControl "180+2"]
[Date "2023.06.06"]
[WhiteClock "0:00:02"]
[BlackClock "0:00:08"]
[Board "7"]

1. d4 {[%clk 0:03:00]}  d5 {[%clk 0:03:00]} 2. Bf4 {[%clk 0:03:00]}  Nf6 {[%clk 0:03:00]} 3. e3 {[%clk 0:03:01]}  e6 {[%clk 0:03:00]} 4. Nd2 {[%clk 0:03:01]}  Bd6 {[%clk 0:03:01]} 5. Bg3 {[%clk 0:03:02]}  Nbd7 {[%clk 0:02:50]} 6. Ngf3 {[%clk 0:03:02]}  Qe7 {[%clk 0:02:50]} 7. Ne5 {[%clk 0:03:02]}  h5 {[%clk 0:02:32]} 8. h3 {[%clk 0:02:53]}  h4 {[%clk 0:02:30]} 9. Bh2 {[%clk 0:02:53]}  Ne4 {[%clk 0:02:30]} 10. Nxe4 {[%clk 0:02:50]}  dxe4 {[%clk 0:02:31]} 11. c3 {[%clk 0:02:46]}  Bxe5 {[%clk 0:02:23]} 12. dxe5 {[%clk 0:02:47]}  Nc5 {[%clk 0:02:23]} 13. Qd4 {[%clk 0:02:38]}  Bd7 {[%clk 0:02:18]} 14. b4 {[%clk 0:02:23]}  Nd3+ {[%clk 0:02:17]} 15. Bxd3 {[%clk 0:02:21]}  exd3 {[%clk 0:02:18]} 16. O-O {[%clk 0:02:13]}  Bc6 {[%clk 0:01:32]} 17. Qxd3 {[%clk 0:01:57]}  Rd8 {[%clk 0:01:32]} 18. Qe2 {[%clk 0:01:57]}  Qg5 {[%clk 0:01:29]} 19. f3 {[%clk 0:01:54]}  b6 {[%clk 0:01:20]} 20. Kh1 {[%clk 0:01:29]}  O-O {[%clk 0:01:19]} 21. Rad1 {[%clk 0:01:26]}  Rxd1 {[%clk 0:01:04]} 22. Rxd1 {[%clk 0:01:27]}  Rd8 {[%clk 0:01:04]} 23. Bf4 {[%clk 0:01:22]}  Qe7 {[%clk 0:01:02]} 24. Rd4 {[%clk 0:01:18]}  g5 {[%clk 0:00:54]} 25. Bxg5 {[%clk 0:01:09]}  Qxg5 {[%clk 0:00:50]} 26. Rg4 {[%clk 0:01:09]}  Qxg4 {[%clk 0:00:50]} 27. hxg4 {[%clk 0:01:08]}  a6 {[%clk 0:00:26]} 28. e4 {[%clk 0:00:58]}  Bb5 {[%clk 0:00:25]} 29. c4 {[%clk 0:00:46]}  Ba4 {[%clk 0:00:22]} 30. Kh2 {[%clk 0:00:39]}  Rd4 {[%clk 0:00:22]} 31. a3 {[%clk 0:00:34]}  c5 {[%clk 0:00:22]} 32. Qe3 {[%clk 0:00:23]}  Rxc4 {[%clk 0:00:20]} 33. Qg5+ {[%clk 0:00:23]}  Kf8 {[%clk 0:00:20]} 34. Qd8+ {[%clk 0:00:24]}  Kg7 {[%clk 0:00:21]} 35. Qxb6 {[%clk 0:00:22]}  cxb4 {[%clk 0:00:20]} 36. axb4 {[%clk 0:00:23]}  Bb5 {[%clk 0:00:20]} 37. Qd6 {[%clk 0:00:19]}  Rc2 {[%clk 0:00:20]} 38. Qe7 {[%clk 0:00:18]}  Bf1 {[%clk 0:00:19]} 39. Qf6+ {[%clk 0:00:10]}  Kg8 {[%clk 0:00:18]} 40. Qg5+ {[%clk 0:00:09]}  Kf8 {[%clk 0:00:19]} 41. Qd8+ {[%clk 0:00:09]}  Kg7 {[%clk 0:00:19]} 42. Qd1 {[%clk 0:00:07]}  Rxg2+ {[%clk 0:00:14]} 43. Kh1 {[%clk 0:00:07]}  Be2 {[%clk 0:00:15]} 44. Qb3 {[%clk 0:00:01]}  h3 {[%clk 0:00:15]} 45. Qe3 {[%clk 0:00:01]}  Kf8 {[%clk 0:00:14]} 46. Qh6+ {[%clk 0:00:01]}  Ke8 {[%clk 0:00:14]} 47. Qe3 {[%clk 0:00:02]}  Bd1 {[%clk 0:00:10]} 48. Qd3 {[%clk 0:00:02]}  Be2 {[%clk 0:00:10]} 49. Qe3 {[%clk 0:00:02]}  Bd1 {[%clk 0:00:11]} 50. Qd4 {[%clk 0:00:02]}  Bxf3 {[%clk 0:00:10]} 51. Qb6 {[%clk 0:00:02]}  Ra2+ {[%clk 0:00:08]} 0-1


[Site "https://www.chess.com"]

[Event "Titled Tuesday Blitz June 6 Early 2023"]
[White "Korobov, Anton"]
[Black "Quintiliano Pinto, Renato R."]
[WhiteFideId "14105730"]
[BlackFideId "2117568"]
[WhiteElo "2638"]
[BlackElo "2459"]
[Result "1-0"]
[Round "3"]
[TimeControl "180+2"]
[Date "2023.06.06"]
[WhiteClock "0:00:53"]
[BlackClock "0:00:20"]
[Board "8"]

1. d4 {[%clk 0:03:00]}  d5 {[%clk 0:02:58]} 2. c4 {[%clk 0:03:01]}  c6 {[%clk 0:02:58]} 3. Nc3 {[%clk 0:03:00]}  Nf6 {[%clk 0:02:57]} 4. cxd5 {[%clk 0:03:00]}  cxd5 {[%clk 0:02:57]} 5. Bg5 {[%clk 0:03:01]}  Ne4 {[%clk 0:02:54]} 6. Nxe4 {[%clk 0:03:00]}  dxe4 {[%clk 0:02:55]} 7. a3 {[%clk 0:03:00]}  Qa5+ {[%clk 0:02:50]} 8. Bd2 {[%clk 0:02:59]}  Qd5 {[%clk 0:02:49]} 9. e3 {[%clk 0:02:59]}  e5 {[%clk 0:02:38]} 10. Rc1 {[%clk 0:02:59]}  Nc6 {[%clk 0:02:37]} 11. Bc4 {[%clk 0:03:00]}  Qd8 {[%clk 0:02:35]} 12. d5 {[%clk 0:02:59]}  Ne7 {[%clk 0:02:24]} 13. Ne2 {[%clk 0:02:44]}  Nf5 {[%clk 0:02:19]} 14. Nc3 {[%clk 0:02:26]}  Nd6 {[%clk 0:02:17]} 15. Nb5 {[%clk 0:02:24]}  Nxb5 {[%clk 0:02:07]} 16. Bxb5+ {[%clk 0:02:24]}  Bd7 {[%clk 0:02:08]} 17. Qa4 {[%clk 0:02:15]}  Bxb5 {[%clk 0:02:03]} 18. Qxb5+ {[%clk 0:02:15]}  Qd7 {[%clk 0:02:03]} 19. Qc4 {[%clk 0:02:12]}  Rd8 {[%clk 0:02:00]} 20. Qxe4 {[%clk 0:01:32]}  Qxd5 {[%clk 0:01:59]} 21. Qxd5 {[%clk 0:01:32]}  Rxd5 {[%clk 0:01:58]} 22. Ke2 {[%clk 0:01:33]}  Be7 {[%clk 0:01:55]} 23. Rc8+ {[%clk 0:01:33]}  Rd8 {[%clk 0:01:49]} 24. Rhc1 {[%clk 0:01:32]}  Bd6 {[%clk 0:01:39]} 25. Bb4 {[%clk 0:01:25]}  Kd7 {[%clk 0:01:24]} 26. Rxd8+ {[%clk 0:01:23]}  Rxd8 {[%clk 0:01:25]} 27. Bxd6 {[%clk 0:01:24]}  Kxd6 {[%clk 0:01:25]} 28. Rd1+ {[%clk 0:01:24]}  Kc7 {[%clk 0:01:25]} 29. Rxd8 {[%clk 0:01:25]}  Kxd8 {[%clk 0:01:25]} 30. Kd3 {[%clk 0:01:26]}  Kd7 {[%clk 0:01:22]} 31. Kc4 {[%clk 0:01:25]}  Kc6 {[%clk 0:01:21]} 32. a4 {[%clk 0:01:25]}  b6 {[%clk 0:01:11]} 33. g4 {[%clk 0:01:25]}  f6 {[%clk 0:01:06]} 34. h4 {[%clk 0:01:25]}  g6 {[%clk 0:01:04]} 35. f4 {[%clk 0:01:17]}  exf4 {[%clk 0:00:57]} 36. exf4 {[%clk 0:01:18]}  f5 {[%clk 0:00:46]} 37. g5 {[%clk 0:01:03]}  a6 {[%clk 0:00:45]} 38. Kd4 {[%clk 0:01:03]}  Kd6 {[%clk 0:00:45]} 39. b3 {[%clk 0:00:53]}  Kc6 {[%clk 0:00:16]} 40. Ke5 {[%clk 0:00:49]}  Kc5 {[%clk 0:00:17]} 41. Kf6 {[%clk 0:00:50]}  Kb4 {[%clk 0:00:17]} 42. Kg7 {[%clk 0:00:50]}  Kxb3 {[%clk 0:00:18]} 43. Kxh7 {[%clk 0:00:51]}  Kxa4 {[%clk 0:00:18]} 44. h5 {[%clk 0:00:51]}  gxh5 {[%clk 0:00:18]} 45. g6 {[%clk 0:00:52]}  h4 {[%clk 0:00:18]} 46. g7 {[%clk 0:00:52]}  h3 {[%clk 0:00:19]} 47. g8=Q {[%clk 0:00:53]}  h2 {[%clk 0:00:20]} 48. Qa2+ {[%clk 0:00:53]} 1-0


[Site "https://www.chess.com"]